fUSD/lending_fUSD_20260703
["ID","MTS","AMOUNT","RATE_DAILY","PERIOD"]
[426950236,1783049456000,-597.3150425,0.00033439,2]
[426950253,1783049456000,-1101.26754386,0.00033439,2]
[426950250,1783049456000,-446.20103305,0.00033439,2]
[426950248,1783049456000,-300.0,0.00033439,2]
[426950251,1783049456000,-300.0,0.00033439,2]
[426950247,1783049456000,-300.0,0.00033439,2]
[426950255,1783049456000,-300.0,0.00033439,2]
[426950256,1783049456000,-300.0,0.00033439,2]
[426950254,1783049456000,-300.0,0.00033439,2]
[426950258,1783049456000,-300.0,0.00033439,2]
[426950257,1783049456000,-300.0,0.00033439,2]
[426950206,1783049456000,-300.0,0.00033439,2]
[426950249,1783049456000,-300.0,0.00033439,2]
[426950234,1783049456000,-300.0,0.00033439,2]
[426950252,1783049456000,-300.0,0.00033439,2]
[426950229,1783049456000,-300.0,0.00033439,2]
[426950221,1783049456000,-302.19910179,0.00033439,2]
[426950235,1783049456000,-564.57560998,0.00033439,2]
[426950220,1783049456000,-303.40388377,0.00033439,2]
[426950217,1783049456000,-536.83065571,0.00033439,2]
[426950214,1783049456000,-607.91868214,0.00033439,2]
[426950213,1783049456000,-300.0,0.00033439,2]
[426950215,1783049456000,-300.0,0.00033439,2]
[426950209,1783049456000,-300.0,0.00033439,2]
[426950212,1783049456000,-300.0,0.00033439,2]
[426950218,1783049456000,-730.2023839,0.00033439,2]
[426950216,1783049456000,-300.0,0.00033439,2]
[426950211,1783049456000,-452.8869591,0.00033439,2]
[426950224,1783049456000,-533.08251466,0.00033439,2]
[426950222,1783049456000,-300.0,0.00033439,2]
[426950225,1783049456000,-300.0,0.00033439,2]
[426950228,1783049456000,-529.6723478,0.00033439,2]
[426950226,1783049456000,-300.0,0.00033439,2]
[426950233,1783049456000,-300.0,0.00033439,2]
[426950223,1783049456000,-300.0,0.00033439,2]
[426950231,1783049456000,-954.40977015,0.00033439,2]
[426950227,1783049456000,-345.80256672,0.00033439,2]
[426950232,1783049456000,-1807.51296116,0.00033439,2]
[426950230,1783049456000,-300.0,0.00033439,2]
[426950293,1783049457000,-300.0,0.00033439,2]
[426950296,1783049457000,-483.07298312,0.00033439,2]
[426950294,1783049457000,-300.0,0.00033439,2]
[426950295,1783049457000,-300.0,0.00033439,2]
[426950302,1783049457000,-300.0,0.00033439,2]
[426950292,1783049457000,-454.31833835,0.00033439,2]
[426950291,1783049457000,-584.85636615,0.00033439,2]
[426950290,1783049457000,-300.0,0.00033439,2]
[426950287,1783049457000,-569.07827579,0.00033439,2]
[426950298,1783049457000,-446.20103305,0.00033439,2]
[426950301,1783049457000,-1101.26754386,0.00033439,2]
[426950299,1783049457000,-300.0,0.00033439,2]
[426950312,1783049457000,-536.83065571,0.00033439,2]
[426950297,1783049457000,-300.0,0.00033439,2]
[426950304,1783049457000,-300.0,0.00033439,2]
[426950307,1783049457000,-300.0,0.00033439,2]
[426950305,1783049457000,-516.97265473,0.00033439,2]
[426950306,1783049457000,-300.0,0.00033439,2]
[426950314,1783049457000,-303.40388377,0.00033439,2]
[426950303,1783049457000,-300.0,0.00033439,2]
[426950308,1783049457000,-495.35167751,0.00033439,2]
[426950311,1783049457000,-607.91868214,0.00033439,2]
[426950310,1783049457000,-559.01774175,0.00033439,2]
[426950309,1783049457000,-300.0,0.00033439,2]
[426950288,1783049457000,-300.0,0.00033439,2]
[426950300,1783049457000,-300.0,0.00033439,2]
[426950289,1783049457000,-514.02377053,0.00033439,2]
[426950265,1783049457000,-345.85845793,0.00033439,2]
[426950283,1783049457000,-564.57560998,0.00033439,2]
[426950259,1783049457000,-300.0,0.00033439,2]
[426950261,1783049457000,-300.0,0.00033439,2]
[426950260,1783049457000,-495.35167751,0.00033439,2]
[426950262,1783049457000,-300.0,0.00033439,2]
[426950313,1783049457000,-730.2023839,0.00033439,2]
[426950266,1783049457000,-536.83065571,0.00033439,2]
[426950263,1783049457000,-607.91868214,0.00033439,2]
[426950264,1783049457000,-395.15074439,0.00033439,2]
[426950268,1783049457000,-457.57912149,0.00033439,2]
[426950278,1783049457000,-300.0,0.00033439,2]
[426950269,1783049457000,-303.40388377,0.00033439,2]
[426950267,1783049457000,-730.2023839,0.00033439,2]
[426950285,1783049457000,-597.3150425,0.00033439,2]
[426950270,1783049457000,-302.19910179,0.00033439,2]
[426950273,1783049457000,-300.0,0.00033439,2]
[426950275,1783049457000,-345.80256672,0.00033439,2]
[426950272,1783049457000,-300.0,0.00033439,2]
[426950277,1783049457000,-300.0,0.00033439,2]
[426950274,1783049457000,-300.0,0.00033439,2]
[426950276,1783049457000,-529.6723478,0.00033439,2]
[426950279,1783049457000,-954.40977015,0.00033439,2]
[426950284,1783049457000,-300.0,0.00033439,2]
[426950280,1783049457000,-1807.51296116,0.00033439,2]
[426950282,1783049457000,-300.0,0.00033439,2]
[426950286,1783049457000,-311.25771399,0.00033439,2]
[426950281,1783049457000,-420.48784213,0.00033439,2]
[426950271,1783049457000,-300.0,0.00033439,2]
[426950324,1783049457000,-954.40977015,0.00033439,2]
[426950319,1783049457000,-300.0,0.00033439,2]
[426950316,1783049457000,-300.0,0.00033439,2]
[426950347,1783049457000,-300.0,0.00033439,2]
[426950350,1783049457000,-607.93647995,0.00033439,2]
[426950357,1783049457000,-300.0,0.00033439,2]
[426950351,1783049457000,-536.83065571,0.00033439,2]
[426950354,1783049457000,-302.20773452,0.00033439,2]
[426950355,1783049457000,-300.0,0.00033439,2]
[426950353,1783049457000,-303.41255069,0.00033439,2]
[426950361,1783049457000,-300.19233691,0.00033439,2]
[426950356,1783049457000,-300.0,0.00033439,2]
[426950360,1783049457000,-529.6723478,0.00033439,2]
[426950352,1783049457000,-730.22341527,0.00033439,2]
[426950359,1783049457000,-345.81228118,0.00033439,2]
[426950358,1783049457000,-300.19237894,0.00033439,2]
[426950363,1783049457000,-954.4373736,0.00033439,2]
[426950362,1783049457000,-300.0,0.00033439,2]
[426950366,1783049457000,-564.59213912,0.00033439,2]
[426950320,1783049457000,-345.80256672,0.00033439,2]
[426950365,1783049457000,-300.0,0.00033439,2]
[426950367,1783049457000,-597.33189265,0.00033439,2]
[426950372,1783049457000,-584.85636615,0.00033439,2]
[426950369,1783049457000,-569.09481307,0.00033439,2]
[426950371,1783049457000,-300.0,0.00033439,2]
[426950368,1783049457000,-311.25771399,0.00033439,2]
[426950370,1783049457000,-514.03895618,0.00033439,2]
[426950373,1783049457000,-454.31833835,0.00033439,2]
[426950348,1783049457000,-300.0,0.00033439,2]
[426950343,1783049457000,-1101.2993955,0.00033439,2]
[426950364,1783049457000,-1807.56394865,0.00033439,2]
[426950346,1783049457000,-431.86552653,0.00033439,2]
[426950344,1783049457000,-300.0,0.00033439,2]
[426950318,1783049457000,-300.0,0.00033439,2]
[426950321,1783049457000,-529.6723478,0.00033439,2]
[426950317,1783049457000,-300.0,0.00033439,2]
[426950323,1783049457000,-300.0,0.00033439,2]
[426950322,1783049457000,-300.0,0.00033439,2]
[426950325,1783049457000,-1807.51296116,0.00033439,2]
[426950326,1783049457000,-300.0,0.00033439,2]
[426950328,1783049457000,-300.0,0.00033439,2]
[426950327,1783049457000,-564.57560998,0.00033439,2]
[426950336,1783049457000,-454.31833835,0.00033439,2]
[426950331,1783049457000,-569.09481307,0.00033439,2]
[426950337,1783049457000,-300.0,0.00033439,2]
[426950315,1783049457000,-302.19910179,0.00033439,2]
[426950335,1783049457000,-584.85636615,0.00033439,2]
[426950345,1783049457000,-300.0,0.00033439,2]
[426950330,1783049457000,-311.25771399,0.00033439,2]
[426950342,1783049457000,-300.0,0.00033439,2]
[426950338,1783049457000,-300.0,0.00033439,2]
[426950341,1783049457000,-446.21844336,0.00033439,2]
[426950340,1783049457000,-300.0,0.00033439,2]
[426950349,1783049457000,-495.35167751,0.00033439,2]
[426950332,1783049457000,-353.48452468,0.00033439,2]
[426950333,1783049457000,-514.03895618,0.00033439,2]
[426950334,1783049457000,-300.0,0.00033439,2]
[426950329,1783049457000,-597.3150425,0.00033439,2]
[426950339,1783049457000,-300.0,0.00033439,2]
[426950394,1783049458000,-529.68766659,0.00033439,2]
[426950399,1783049458000,-564.59213912,0.00033439,2]
[426950393,1783049458000,-345.81228118,0.00033439,2]
[426950397,1783049458000,-1807.56394865,0.00033439,2]
[426950402,1783049458000,-569.09481307,0.00033439,2]
[426950400,1783049458000,-597.33189265,0.00033439,2]
[426950401,1783049458000,-311.25771399,0.00033439,2]
[426950407,1783049458000,-300.0,0.00033439,2]
[426950398,1783049458000,-300.0,0.00033439,2]
[426950408,1783049458000,-300.0,0.00033439,2]
[426950409,1783049458000,-446.21844336,0.00033439,2]
[426950403,1783049458000,-514.03895618,0.00033439,2]
[426950404,1783049458000,-300.0,0.00033439,2]
[426950406,1783049458000,-454.31833835,0.00033439,2]
[426950411,1783049458000,-1101.2993955,0.00033439,2]
[426950391,1783049458000,-300.0,0.00033439,2]
[426950405,1783049458000,-584.90935059,0.00033439,2]
[426950392,1783049458000,-300.0,0.00033439,2]
[426950376,1783049458000,-300.20146672,0.00033439,2]
[426950390,1783049458000,-300.0,0.00033439,2]
[426950374,1783049458000,-300.0,0.00033439,2]
[426950383,1783049458000,-300.0,0.00033439,2]
[426950379,1783049458000,-300.0,0.00033439,2]
[426950381,1783049458000,-300.0,0.00033439,2]
[426950375,1783049458000,-300.0,0.00033439,2]
[426950380,1783049458000,-1101.2993955,0.00033439,2]
[426950378,1783049458000,-446.21844336,0.00033439,2]
[426950389,1783049458000,-302.20773452,0.00033439,2]
[426950377,1783049458000,-300.0,0.00033439,2]
[426950385,1783049458000,-607.93647995,0.00033439,2]
[426950388,1783049458000,-303.41255069,0.00033439,2]
[426950396,1783049458000,-954.4373736,0.00033439,2]
[426950395,1783049458000,-300.0,0.00033439,2]
[426950386,1783049458000,-536.84579979,0.00033439,2]
[426950387,1783049458000,-730.22341527,0.00033439,2]
[426950384,1783049458000,-495.36565136,0.00033439,2]
[426950382,1783049458000,-300.0,0.00033439,2]
[426950421,1783049458000,-300.0,0.00033439,2]
[426950414,1783049458000,-300.0,0.00033439,2]
[426950410,1783049458000,-300.0,0.00033439,2]
[426950437,1783049458000,-584.90935059,0.00033439,2]
[426950439,1783049458000,-292.63430148,0.00033439,2]
[426950436,1783049458000,-300.0,0.00033439,2]
[426950440,1783049458000,-7.36569852,0.00033439,2]
[426950441,1783049458000,-300.0,0.00033439,2]
[426950438,1783049458000,-454.33158468,0.00033439,2]
[426950442,1783049458000,-446.21844336,0.00033439,2]
[426950443,1783049458000,-300.0,0.00033439,2]
[426950448,1783049458000,-495.36565136,0.00033439,2]
[426950447,1783049458000,-385.85104895,0.00033439,2]
[426950449,1783049458000,-607.93647995,0.00033439,2]
[426950445,1783049458000,-300.0,0.00033439,2]
[426950450,1783049458000,-536.84579979,0.00033439,2]
[426950451,1783049458000,-730.22341527,0.00033439,2]
[426950446,1783049458000,-300.20334206,0.00033439,2]
[426950452,1783049458000,-192.81925682,0.00033439,2]
[426950412,1783049458000,-300.0,0.00033439,2]
[426950435,1783049458000,-168.12476325,0.00033439,2]
[426950434,1783049458000,-345.91419293,0.00033439,2]
[426950444,1783049458000,-1101.2993955,0.00033439,2]
[426950427,1783049458000,-954.4373736,0.00033439,2]
[426950413,1783049458000,-300.0,0.00033439,2]
[426950431,1783049458000,-597.33189265,0.00033439,2]
[426950418,1783049458000,-730.22341527,0.00033439,2]
[426950417,1783049458000,-536.84579979,0.00033439,2]
[426950420,1783049458000,-302.20773452,0.00033439,2]
[426950415,1783049458000,-495.36565136,0.00033439,2]
[426950419,1783049458000,-303.41255069,0.00033439,2]
[426950422,1783049458000,-300.23875881,0.00033439,2]
[426950416,1783049458000,-607.93647995,0.00033439,2]
[426950424,1783049458000,-529.68766659,0.00033439,2]
[426950433,1783049458000,-569.09481307,0.00033439,2]
[426950423,1783049458000,-300.0,0.00033439,2]
[426950425,1783049458000,-345.81228118,0.00033439,2]
[426950428,1783049458000,-1807.56394865,0.00033439,2]
[426950426,1783049458000,-326.48616022,0.00033439,2]
[426950430,1783049458000,-564.59213912,0.00033439,2]
[426950429,1783049458000,-300.1849351,0.00033439,2]
[426950432,1783049458000,-311.25771399,0.00033439,2]
[426950501,1783049459000,-1101.2993955,0.00033439,2]
[426950500,1783049459000,-300.0,0.00033439,2]
[426950489,1783049459000,-564.59213912,0.00033439,2]
[426950480,1783049459000,-730.22341527,0.00033439,2]
[426950486,1783049459000,-529.68766659,0.00033439,2]
[426950487,1783049459000,-954.4373736,0.00033439,2]
[426950481,1783049459000,-303.41255069,0.00033439,2]
[426950488,1783049459000,-1807.56394865,0.00033439,2]
[426950485,1783049459000,-345.81228118,0.00033439,2]
[426950483,1783049459000,-300.0,0.00033439,2]
[426950499,1783049459000,-446.21844336,0.00033439,2]
[426950502,1783049459000,-300.0,0.00033439,2]
[426950491,1783049459000,-311.26693679,0.00033439,2]
[426950492,1783049459000,-569.09481307,0.00033439,2]
[426950493,1783049459000,-514.03895618,0.00033439,2]
[426950496,1783049459000,-454.33158468,0.00033439,2]
[426950494,1783049459000,-474.58682057,0.00033439,2]
[426950497,1783049459000,-574.07636655,0.00033439,2]
[426950498,1783049459000,-549.28970542,0.00033439,2]
[426950510,1783049459000,-345.81228118,0.00033439,2]
[426950505,1783049459000,-536.84579979,0.00033439,2]
[426950503,1783049459000,-495.36565136,0.00033439,2]
[426950482,1783049459000,-302.20773452,0.00033439,2]
[426950490,1783049459000,-597.33189265,0.00033439,2]
[426950484,1783049459000,-516.91686914,0.00033439,2]
[426950461,1783049459000,-74.43715545,0.00033439,2]
[426950477,1783049459000,-495.36565136,0.00033439,2]
[426950454,1783049459000,-302.20773452,0.00033439,2]
[426950453,1783049459000,-110.59329387,0.00033439,2]
[426950457,1783049459000,-345.81228118,0.00033439,2]
[426950455,1783049459000,-300.0,0.00033439,2]
[426950456,1783049459000,-300.0,0.00033439,2]
[426950460,1783049459000,-334.95766743,0.00033439,2]
[426950459,1783049459000,-545.04255072,0.00033439,2]
[426950512,1783049459000,-954.4373736,0.00033439,2]
[426950462,1783049459000,-1807.56394865,0.00033439,2]
[426950458,1783049459000,-529.68766659,0.00033439,2]
[426950464,1783049459000,-597.33189265,0.00033439,2]
[426950475,1783049459000,-1101.2993955,0.00033439,2]
[426950468,1783049459000,-300.0,0.00033439,2]
[426950463,1783049459000,-564.59213912,0.00033439,2]
[426950465,1783049459000,-311.26693679,0.00033439,2]
[426950467,1783049459000,-514.03895618,0.00033439,2]
[426950469,1783049459000,-584.90935059,0.00033439,2]
[426950466,1783049459000,-569.09481307,0.00033439,2]
[426950474,1783049459000,-300.0,0.00033439,2]
[426950472,1783049459000,-300.0,0.00033439,2]
[426950471,1783049459000,-300.0,0.00033439,2]
[426950473,1783049459000,-446.21844336,0.00033439,2]
[426950470,1783049459000,-454.33158468,0.00033439,2]
[426950476,1783049459000,-300.0,0.00033439,2]
[426950478,1783049459000,-607.93647995,0.00033439,2]
[426950479,1783049459000,-536.84579979,0.00033439,2]
[426950506,1783049459000,-730.22341527,0.00033439,2]
[426950495,1783049459000,-584.90935059,0.00033439,2]
[426950509,1783049459000,-300.0,0.00033439,2]
[426950532,1783049459000,-345.81228118,0.00033439,2]
[426950541,1783049459000,-584.90935059,0.00033439,2]
[426950551,1783049459000,-303.41255069,0.00033439,2]
[426950553,1783049459000,-480.27717965,0.00033439,2]
[426950552,1783049459000,-302.20773452,0.00033439,2]
[426950540,1783049459000,-514.03895618,0.00033439,2]
[426950542,1783049459000,-454.33158468,0.00033439,2]
[426950546,1783049459000,-300.0,0.00033439,2]
[426950544,1783049459000,-300.0,0.00033439,2]
[426950543,1783049459000,-446.21844336,0.00033439,2]
[426950545,1783049459000,-1101.2993955,0.00033439,2]
[426950535,1783049459000,-1807.56394865,0.00033439,2]
[426950549,1783049459000,-536.84579979,0.00033439,2]
[426950548,1783049459000,-607.93647995,0.00033439,2]
[426950558,1783049459000,-564.59213912,0.00033439,2]
[426950554,1783049459000,-345.81228118,0.00033439,2]
[426950562,1783049459000,-514.03895618,0.00033439,2]
[426950555,1783049459000,-529.68766659,0.00033439,2]
[426950557,1783049459000,-1807.56394865,0.00033439,2]
[426950564,1783049459000,-454.33158468,0.00033439,2]
[426950556,1783049459000,-954.4373736,0.00033439,2]
[426950566,1783049459000,-300.0,0.00033439,2]
[426950560,1783049459000,-311.26693679,0.00033439,2]
[426950504,1783049459000,-607.93647995,0.00033439,2]
[426950550,1783049459000,-730.22341527,0.00033439,2]
[426950536,1783049459000,-564.59213912,0.00033439,2]
[426950547,1783049459000,-495.36565136,0.00033439,2]
[426950534,1783049459000,-954.4373736,0.00033439,2]
[426950511,1783049459000,-529.68766659,0.00033439,2]
[426950530,1783049459000,-302.20773452,0.00033439,2]
[426950507,1783049459000,-303.41255069,0.00033439,2]
[426950508,1783049459000,-302.20773452,0.00033439,2]
[426950514,1783049459000,-564.59213912,0.00033439,2]
[426950524,1783049459000,-300.0,0.00033439,2]
[426950525,1783049459000,-495.36565136,0.00033439,2]
[426950513,1783049459000,-1807.56394865,0.00033439,2]
[426950516,1783049459000,-311.26693679,0.00033439,2]
[426950517,1783049459000,-569.09481307,0.00033439,2]
[426950518,1783049459000,-514.03895618,0.00033439,2]
[426950521,1783049459000,-446.21844336,0.00033439,2]
[426950522,1783049459000,-300.0,0.00033439,2]
[426950515,1783049459000,-597.33189265,0.00033439,2]
[426950538,1783049459000,-311.26693679,0.00033439,2]
[426950531,1783049459000,-300.0,0.00033439,2]
[426950523,1783049459000,-1101.2993955,0.00033439,2]
[426950533,1783049459000,-529.68766659,0.00033439,2]
[426950527,1783049459000,-536.84579979,0.00033439,2]
[426950537,1783049459000,-597.33189265,0.00033439,2]
[426950539,1783049459000,-569.09481307,0.00033439,2]
[426950528,1783049459000,-730.22341527,0.00033439,2]
[426950526,1783049459000,-607.93647995,0.00033439,2]
[426950520,1783049459000,-454.33158468,0.00033439,2]
[426950519,1783049459000,-584.90935059,0.00033439,2]
[426950529,1783049459000,-303.41255069,0.00033439,2]
[426950616,1783049460000,-954.4373736,0.00033439,2]
[426950629,1783049460000,-607.93647995,0.00033439,2]
[426950620,1783049460000,-311.26693679,0.00033439,2]
[426950613,1783049460000,-302.20773452,0.00033439,2]
[426950617,1783049460000,-1807.56394865,0.00033439,2]
[426950612,1783049460000,-303.41255069,0.00033439,2]
[426950614,1783049460000,-345.81228118,0.00033439,2]
[426950611,1783049460000,-730.22341527,0.00033439,2]
[426950608,1783049460000,-495.36565136,0.00033439,2]
[426950619,1783049460000,-597.33189265,0.00033439,2]
[426950615,1783049460000,-529.68766659,0.00033439,2]
[426950628,1783049460000,-495.36565136,0.00033439,2]
[426950635,1783049460000,-529.68766659,0.00033439,2]
[426950631,1783049460000,-730.22341527,0.00033439,2]
[426950621,1783049460000,-569.09481307,0.00033439,2]
[426950623,1783049460000,-454.33158468,0.00033439,2]
[426950622,1783049460000,-514.03895618,0.00033439,2]
[426950626,1783049460000,-301.11737558,0.00033439,2]
[426950624,1783049460000,-446.21844336,0.00033439,2]
[426950627,1783049460000,-1101.2993955,0.00033439,2]
[426950625,1783049460000,-300.0,0.00033439,2]
[426950632,1783049460000,-303.41255069,0.00033439,2]
[426950643,1783049460000,-649.2014577,0.00033442,60]
[426950637,1783049460000,-1807.56394865,0.00033439,2]
[426950618,1783049460000,-564.59213912,0.00033439,2]
[426950630,1783049460000,-536.84579979,0.00033439,2]
[426950609,1783049460000,-607.93647995,0.00033439,2]
[426950591,1783049460000,-536.84579979,0.00033439,2]
[426950607,1783049460000,-1101.2993955,0.00033439,2]
[426950580,1783049460000,-597.33189265,0.00033439,2]
[426950592,1783049460000,-730.22341527,0.00033439,2]
[426950582,1783049460000,-569.09481307,0.00033439,2]
[426950581,1783049460000,-311.26693679,0.00033439,2]
[426950583,1783049460000,-514.03895618,0.00033439,2]
[426950586,1783049460000,-446.21844336,0.00033439,2]
[426950584,1783049460000,-460.05467452,0.00033439,2]
[426950585,1783049460000,-454.33158468,0.00033439,2]
[426950587,1783049460000,-300.0,0.00033439,2]
[426950593,1783049460000,-303.41255069,0.00033439,2]
[426950590,1783049460000,-607.93647995,0.00033439,2]
[426950588,1783049460000,-1101.2993955,0.00033439,2]
[426950610,1783049460000,-536.84579979,0.00033439,2]
[426950589,1783049460000,-495.36565136,0.00033439,2]
[426950603,1783049460000,-514.03895618,0.00033439,2]
[426950606,1783049460000,-300.0,0.00033439,2]
[426950596,1783049460000,-529.68766659,0.00033439,2]
[426950604,1783049460000,-454.33158468,0.00033439,2]
[426950594,1783049460000,-302.20773452,0.00033439,2]
[426950605,1783049460000,-446.21844336,0.00033439,2]
[426950597,1783049460000,-954.4373736,0.00033439,2]
[426950602,1783049460000,-569.09481307,0.00033439,2]
[426950599,1783049460000,-564.59213912,0.00033439,2]
[426950601,1783049460000,-311.26693679,0.00033439,2]
[426950598,1783049460000,-1807.56394865,0.00033439,2]
[426950600,1783049460000,-597.33189265,0.00033439,2]
[426950595,1783049460000,-345.81228118,0.00033439,2]
[426950633,1783049460000,-302.20773452,0.00033439,2]
[426950642,1783049460000,-500.0,0.00033442,60]
[426950634,1783049460000,-345.81228118,0.00033439,2]
[426950667,1783049460000,-256.95,0.000339,7]
[426950671,1783049460000,-1000.0,0.00033947,30]
[426950675,1783049460000,-2392.0,0.00033963,120]
[426950672,1783049460000,-665.0,0.00033953,120]
[426950674,1783049460000,-665.0,0.00033963,120]
[426950678,1783049460000,-500.0,0.00033973,7]
[426950679,1783049460000,-500.0,0.00033973,7]
[426950677,1783049460000,-500.0,0.00033973,7]
[426950673,1783049460000,-2392.0,0.00033953,120]
[426950680,1783049460000,-500.0,0.00033973,7]
[426950681,1783049460000,-500.0,0.00033973,7]
[426950683,1783049460000,-500.0,0.00033973,7]
[426950685,1783049460000,-500.0,0.00033973,7]
[426950684,1783049460000,-500.0,0.00033973,7]
[426950682,1783049460000,-500.0,0.00033973,7]
[426950687,1783049460000,-500.0,0.00033973,7]
[426950694,1783049460000,-358.26009265,0.00034,2]
[426950695,1783049460000,-800.0,0.00034,7]
[426950686,1783049460000,-500.0,0.00033973,7]
[426950690,1783049460000,-500.0,0.00033973,7]
[426950693,1783049460000,-358.0,0.00034,2]
[426950692,1783049460000,-617.98708688,0.00033973,7]
[426950689,1783049460000,-500.0,0.00033973,7]
[426950688,1783049460000,-500.0,0.00033973,7]
[426950691,1783049460000,-500.0,0.00033973,7]
[426950670,1783049460000,-2392.0,0.00033943,120]
[426950669,1783049460000,-665.0,0.00033943,120]
[426950676,1783049460000,-500.0,0.00033973,7]
[426950665,1783049460000,-2338.0,0.00033868,11]
[426950664,1783049460000,-638.17,0.000338,30]
[426950639,1783049460000,-597.33189265,0.00033439,2]
[426950641,1783049460000,-748.4983794,0.00033442,60]
[426950644,1783049460000,-292.9445201,0.00033442,60]
[426950640,1783049460000,-367.98162672,0.00033441,14]
[426950645,1783049460000,-243.0690201,0.00033442,60]
[426950647,1783049460000,-249.0017556,0.00033442,60]
[426950657,1783049460000,-5520.73667684,0.00033549,2]
[426950646,1783049460000,-358.4210542,0.00033442,60]
[426950649,1783049460000,-347.76,0.00033462,2]
[426950654,1783049460000,-800.0,0.000335,5]
[426950656,1783049460000,-624.01918282,0.000335,5]
[426950650,1783049460000,-358.0,0.00033476,14]
[426950636,1783049460000,-954.4373736,0.00033439,2]
[426950648,1783049460000,-9000.0,0.00033455,5]
[426950652,1783049460000,-1339.63,0.00033476,2]
[426950659,1783049460000,-5578.64955667,0.0003361,30]
[426950666,1783049460000,-209.2,0.000339,120]
[426950668,1783049460000,-13309.59647954,0.0003392,2]
[426950662,1783049460000,-320.0,0.00033699,120]
[426950661,1783049460000,-486.17,0.00033693,120]
[426950638,1783049460000,-564.59213912,0.00033439,2]
[426950663,1783049460000,-288.85,0.0003379,30]
[426950658,1783049460000,-370.15,0.000336,30]
[426950655,1783049460000,-1239.47165787,0.000335,2]
[426950651,1783049460000,-358.0,0.00033476,14]
[426950653,1783049460000,-288.85,0.00033486,30]
[426950660,1783049460000,-427.07,0.00033611,3]
[426950706,1783049461000,-775.29,0.0002755,30]
[426950703,1783049461000,-3581.65020983,0.00027397,10]
[426950704,1783049461000,-162.79,0.0002755,30]
[426950705,1783049461000,-227.81,0.0002755,30]
[426950699,1783049461000,-227.56950906,0.00026799,2]
[426950701,1783049461000,-67.69957907,0.00026799,2]
[426950708,1783049461000,-775.29,0.00027711,7]
[426950700,1783049461000,-515.49661343,0.00026799,2]
[426950697,1783049461000,-620.10691657,0.00026699,2]
[426950698,1783049461000,-272.43049094,0.00026799,2]
[426950702,1783049461000,-573.22979017,0.00027397,10]
[426950709,1783049461000,-162.79,0.00027791,7]
[426950715,1783049461000,-5073.25041755,0.00034,120]
[426950711,1783049461000,-227.83,0.00029,30]
[426950716,1783049461000,-691.29823457,0.00034,3]
[426950710,1783049461000,-162.79,0.00029,30]
[426950712,1783049461000,-328.04,0.0003,2]
[426950696,1783049461000,-34202.73993582,0.00034,2]
[426950714,1783049461000,-158.92821099,0.00034,14]
[426950717,1783049461000,-992.8782551,0.00034,3]
[426950718,1783049461000,-7188.4445456,0.00034,3]
[426950719,1783049461000,-1641.74886254,0.00034,3]
[426950721,1783049461000,-704.52,0.00034,3]
[426950720,1783049461000,-775.3,0.00029,30]
[426950707,1783049461000,-227.81,0.00027711,7]
[426950713,1783049461000,-37043.20012571,0.00034,2]
[426950734,1783050552000,-176.20568401,0.00013699,2]
[426950735,1783050552000,-181.3,0.00013699,2]
[426950736,1783050552000,-20.37431599,0.00013699,2]
[426950740,1783050572000,-150.0,0.00013836,2]
[426950739,1783050572000,-310.80898136,0.00013733,2]
[426950742,1783050572000,-271.30328392,0.000142,2]
[426950741,1783050572000,-150.0,0.00013973,2]
[426950743,1783050572000,-160.22955512,0.000142,2]
[426950744,1783050572000,-199.90773419,0.000148,2]
[426950745,1783050572000,-170.75883936,0.00014859,2]
[426950746,1783050572000,-161.53207991,0.000149,2]
[426950747,1783050572000,-1484.59918944,0.000149,2]
[426950750,1783050572000,-170.75883935,0.000149,2]
[426950748,1783050572000,-718.70200279,0.000149,2]
[426950751,1783050572000,-422.72873998,0.000149,2]